bitfinex/quotes_SOLUSD_20240620
["timestamp","ask_amount","ask_price","bid_price","bid_amount"]
[1718850886394,20.34,135.21,135.15,21.5324]
[1718850886600,0.34,135.2,135.15,21.5324]
[1718850887798,0.17,135.19,135.15,21.5324]
[1718850888007,7.9073,135.19,135.15,6.3974]
[1718850888204,0.17,135.18,135.15,6.3974]
[1718850888383,0.34,135.18,135.15,6.3974]
[1718850889198,0.34,135.18,135.12,15.9639]
[1718850889394,0.17,135.17,135.12,22.2125]
[1718850889592,0.34,135.17,135.12,22.2125]
[1718850890682,0.17,135.16,135.12,22.2125]
[1718850890882,0.34,135.16,135.07,21.8542]
[1718850891107,0.34,135.16,135.08,45.0]
[1718850891697,0.34,135.16,135.07,21.8542]
[1718850891896,0.17,135.15,135.07,21.8542]
[1718850892391,0.34,135.15,135.07,21.8542]
[1718850892593,0.17,135.13,135.07,21.8542]
[1718850892801,27.9103,135.13,135.07,21.8542]
[1718850893008,7.4016,135.11,135.02,2.966392]
[1718850893222,0.34,135.1,135.03,21.6851]
[1718850893904,0.34,135.11,135.03,21.6851]
[1718850894610,0.34,135.1,135.03,21.6851]
[1718850894815,0.34,135.09,135.03,21.6851]
[1718850897096,20.0,135.1,135.03,21.6851]
[1718850897300,20.0,135.1,135.04,45.0]
[1718850897495,0.34,135.11,135.04,45.0]
[1718850897697,20.0,135.13,135.04,45.0]
[1718850897698,0.51,135.12,135.04,45.0]
[1718850899399,20.0,135.14,135.04,45.0]
[1718850899896,27.3997,135.14,135.04,45.0]
[1718850900214,20.0,135.14,135.04,45.0]
[1718850900625,27.4001,135.14,135.05,1.39201261]
[1718850900823,0.34,135.13,135.04,45.0]
[1718850901329,7.7403,135.13,135.04,45.0]
[1718850901525,0.17,135.1,135.04,45.0]
[1718850901698,0.17,135.1,135.03,21.6851]
[1718850901902,20.51,135.1,135.03,21.6851]
[1718850902146,0.17,135.09,135.03,21.6851]
[1718850902822,0.17,135.1,135.04,45.0]
[1718850903026,0.17,135.12,135.04,45.0]
[1718850903215,20.0,135.13,135.05,0.17]
[1718850903438,29.5577,135.18,135.05,20.51]
[1718850903639,20.0,135.17,135.06,45.17]
[1718850903807,20.0,135.17,135.07,0.17]
[1718850904008,20.0,135.17,135.08,21.0722]
[1718850904208,20.0,135.18,135.09,45.0]
[1718850905031,0.34,135.17,135.09,45.0]
[1718850905232,0.17,135.16,135.09,45.0]
[1718850907235,23.8073,135.23,135.1,0.17]
[1718850907420,20.0,135.22,135.1,42.96]
[1718850907749,4.6587,135.24,135.12,0.17]
[1718850907912,7.3943,135.24,135.12,20.34]
[1718850908119,20.0,135.23,135.13,0.17]
[1718850908338,20.0,135.23,135.13,45.34]
[1718850908639,20.0,135.23,135.13,45.17]
[1718850908841,27.3948,135.23,135.13,45.0]
[1718850909542,0.68,135.22,135.13,45.0]
[1718850910245,8.0755,135.22,135.13,45.0]
[1718850910940,0.17,135.2,135.11,6.1491]
[1718850911143,7.3983,135.17,135.11,6.1491]
[1718850911436,0.34,135.16,135.11,6.1491]
[1718850911625,0.51,135.16,135.11,6.1491]
[1718850912534,0.17,135.15,135.11,6.1491]
[1718850913541,20.0,135.17,135.11,6.1491]
[1718850913725,29.5556,135.22,135.12,45.0]
[1718850913929,27.3959,135.21,135.12,45.0]
[1718850914518,7.3969,135.2,135.12,45.0]
[1718850914721,0.17,135.18,135.11,6.1491]
[1718850914929,0.68,135.18,135.11,6.1491]
[1718850915327,20.68,135.18,135.11,6.1491]
[1718850916637,28.0775,135.18,135.11,6.1491]
[1718850917017,20.68,135.18,135.11,6.1491]
[1718850917936,0.68,135.18,135.11,6.1491]
[1718850918141,8.0776,135.18,135.08,21.3078]
[1718850918345,8.0776,135.18,135.09,45.0]
[1718850919037,0.68,135.18,135.09,45.0]
[1718850921642,36.5073,135.19,135.09,45.0]
[1718850922543,43.9043,135.19,135.09,45.0]
[1718850923037,0.68,135.18,135.09,45.0]
[1718850923240,0.17,135.17,135.09,45.0]
[1718850924443,0.17,135.17,135.08,21.3078]
[1718850924646,0.17,135.15,135.05,22.2966]
[1718850924945,20.68,135.15,135.05,22.2966]
[1718850925146,0.34,135.14,135.05,22.2966]
[1718850925347,0.17,135.14,135.05,22.2966]
[1718850925731,0.17,135.14,135.06,0.17]
[1718850925938,0.34,135.15,135.06,45.17]
[1718850926138,0.68,135.16,135.06,45.17]
[1718850926641,8.0786,135.16,135.06,45.0]
[1718850926839,20.0,135.15,135.06,45.0]
[1718850927042,0.17,135.14,135.06,45.0]
[1718850927831,0.17,135.15,135.06,45.0]
[1718850928530,20.17,135.15,135.06,45.0]
[1718850928848,0.17,135.14,135.06,45.0]
[1718850929044,0.17,135.15,135.06,45.0]
[1718850929349,20.17,135.15,135.06,45.0]
[1718850929557,0.17,135.14,135.06,45.0]
[1718850930929,0.34,135.15,135.06,45.0]
[1718850932248,0.34,135.15,135.07,0.17]
[1718850932432,0.17,135.16,135.07,0.51]
[1718850932636,20.0,135.18,135.07,0.51]
[1718850932948,16.5073,135.19,135.08,0.17]
[1718850933253,16.5073,135.19,135.11,16.3865]
[1718850933435,16.5073,135.19,135.12,45.0]
[1718850934262,15.267,135.23,135.12,45.0]
[1718850934443,20.0,135.22,135.12,45.0]
[1718850935034,27.3954,135.22,135.12,45.0]
[1718850935554,27.3954,135.22,135.12,67.1]
[1718850936744,0.51,135.21,135.12,67.1]
[1718850940159,0.17,135.2,135.11,16.3865]
[1718850940357,0.17,135.18,135.11,16.3865]
[1718850940574,0.34,135.18,135.11,16.3865]
[1718850941446,0.34,135.17,135.09,6.3916]
[1718850941642,0.34,135.16,135.09,6.3916]
[1718850942053,0.17,135.15,135.09,6.3916]
[1718850942642,20.34,135.16,135.09,6.3916]
[1718850942958,0.17,135.15,135.09,6.3916]
[1718850943360,0.34,135.15,135.09,6.3916]
[1718850943661,0.17,135.14,135.09,6.3916]
[1718850943859,0.17,135.14,135.07,16.2639]
[1718850944258,0.34,135.14,135.06,6.1322]
[1718850944460,0.17,135.12,135.03,22.0272]
[1718850944682,0.34,135.12,135.03,22.0272]
[1718850944859,0.17,135.1,135.03,22.0272]
[1718850945050,0.34,135.1,135.03,22.0272]
[1718850945254,0.17,135.09,135.03,22.0272]
[1718850945458,0.34,135.09,135.03,22.0272]
[1718850945657,15.5508,135.11,135.03,22.0272]
[1718850946164,0.17,135.11,135.03,22.0272]
[1718850947142,0.17,135.11,135.04,45.0]
[1718850947851,7.7417,135.11,135.04,45.0]
[1718850948047,0.34,135.1,135.01,0.17]
[1718850948242,0.34,135.1,135.01,65.17]
[1718850948452,0.17,135.11,135.01,65.17]
[1718850948655,0.51,135.11,135.02,0.17]
[1718850949245,0.51,135.11,135.01,65.17]
[1718850950556,7.9114,135.11,135.01,65.17]
[1718850950848,0.17,135.1,135.01,65.0]
[1718850951059,0.51,135.11,135.01,65.0]
[1718850951240,0.17,135.1,135.01,65.0]
[1718850951962,15.4277,135.14,135.02,0.34]
[1718850952264,15.4277,135.14,135.06,0.17]
[1718850952565,27.5888,135.17,135.06,65.17]
[1718850952947,7.3992,135.15,135.06,65.0]
[1718850953254,27.3987,135.16,135.06,65.0]
[1718850954040,7.3997,135.14,135.06,65.0]
[1718850954241,0.68,135.13,135.06,65.0]
[1718850954444,0.68,135.13,135.06,45.0]
[1718850954644,0.68,135.13,135.05,6.1497]
[1718850955150,20.68,135.13,135.05,6.1497]
[1718850955351,28.0804,135.13,135.05,6.1497]
[1718850955554,28.0804,135.13,135.03,16.4716]
[1718850955752,20.51,135.13,135.03,16.4716]
[1718850956042,20.0,135.12,135.03,16.4716]
[1718850956661,0.17,135.12,135.03,16.4716]
[1718850957074,0.17,135.12,135.04,45.0]
[1718850957446,7.5708,135.12,135.04,45.0]
[1718850957772,0.51,135.11,135.03,16.4716]
[1718850959048,0.51,135.11,135.04,45.0]
[1718850961572,0.17,135.1,135.0,15.7528]
[1718850961751,0.17,135.08,135.0,15.7528]
[1718850961951,0.51,135.08,135.0,15.7528]
[1718850962760,7.9131,135.08,134.98,6.2779]
[1718850962962,0.17,135.06,134.98,6.2779]
[1718850963167,0.51,135.06,134.98,6.2779]
[1718850963872,4.8287,135.04,134.94,6.0431]
[1718850964051,0.34,135.03,134.95,20.0]
[1718850964253,0.17,135.02,134.94,6.0431]
[1718850964456,20.34,135.02,134.94,6.0431]
[1718850964646,0.17,135.01,134.94,6.0431]
[1718850964847,0.51,135.01,134.94,6.0431]
[1718850965463,0.17,135.0,134.91,253.6]
[1718850965674,0.17,135.0,134.9,28.564]
[1718850966252,0.17,135.0,134.9,6.284]
[1718850966574,0.51,135.0,134.9,6.284]
[1718850966874,0.34,135.0,134.9,6.284]
[1718850967068,20.0,135.01,134.9,28.564]
[1718850967376,20.0,135.03,134.92,22.1]
[1718850967674,0.17,135.02,134.93,20.0]
[1718850968083,0.34,135.02,134.94,45.0]
[1718850969073,0.17,135.01,134.94,45.0]
[1718850969261,7.7472,135.01,134.9,6.284]
[1718850969458,7.5784,134.99,134.91,20.0]
[1718850969660,15.6992,134.98,134.89,15.7696]
[1718850969874,15.6992,134.98,134.9,20.0]
[1718850970174,15.6992,134.98,134.86,37.776]
[1718850970175,0.17,134.97,134.86,37.776]
[1718850970379,27.7492,134.97,134.87,20.0]
[1718850970558,0.17,134.96,134.87,20.0]
[1718850970765,20.0,134.97,134.87,20.0]
[1718850971653,20.0179,134.98,134.88,44.38]
[1718850971854,20.0179,134.98,134.89,20.0]
[1718850972477,20.0179,134.98,134.9,45.34]
[1718850974696,20.0179,134.98,134.9,45.0]
[1718850974874,0.68,134.97,134.89,20.0]
[1718850975061,0.34,134.97,134.87,20.0]
[1718850975268,20.0179,134.98,134.87,42.28]
[1718850975466,0.34,134.97,134.87,20.0]
[1718850976177,0.34,134.97,134.88,45.0]
[1718850976481,0.34,134.97,134.89,20.0]
[1718850976789,0.17,134.96,134.86,22.0768]
[1718850977083,0.34,134.96,134.87,20.0]
[1718850977391,0.34,134.95,134.87,20.0]
[1718850977781,0.17,134.94,134.84,253.6]
[1718850977966,7.7507,134.94,134.85,20.0]
[1718850978159,0.34,134.93,134.85,20.0]
[1718850978557,0.34,134.93,134.83,20.0]
[1718850978975,7.7515,134.93,134.83,20.0]
[1718850979278,0.34,134.93,134.83,20.0]
[1718850980468,20.17,134.94,134.84,0.34]
[1718850980667,0.34,134.95,134.85,0.17]
[1718850981059,0.34,134.94,134.84,45.34]
[1718850981280,0.34,134.94,134.85,20.0]
[1718850981581,0.34,134.93,134.86,45.0]
[1718850983272,16.198,134.92,134.86,45.0]
[1718850984182,15.8385,134.95,134.88,0.17]
[1718850984383,20.4972,134.98,134.88,0.17]
[1718850984575,20.4972,134.98,134.9,0.17]
[1718850984882,19.8596,135.02,134.9,110.06]
[1718850985390,27.2662,135.02,134.93,22.1]
[1718850985697,27.2662,135.02,134.94,65.0]
[1718850985861,27.2662,135.02,134.94,45.0]
[1718850986184,19.8596,135.02,134.95,0.17]
[1718850986378,4.6587,135.05,134.95,65.06]
[1718850986985,4.6587,135.05,134.97,0.17]
[1718850987175,4.6587,135.05,134.97,20.34]
[1718850987362,4.6587,135.05,134.98,45.0]
[1718850987562,16.5274,135.06,134.98,67.28]
[1718850987761,4.6587,135.09,134.99,42.96]
[1718850988069,4.6587,135.09,135.01,0.17]
[1718850988457,4.6587,135.09,135.01,20.17]
[1718850988663,4.6587,135.09,135.02,45.0]
[1718850988885,0.17,135.08,135.01,20.0]
[1718850989060,4.6587,135.09,135.02,45.0]
[1718850989666,16.5274,135.1,135.02,45.0]
[1718850990094,4.6587,135.12,135.03,20.0]
[1718850990392,32.0596,135.12,135.04,45.0]
[1718850990884,7.4015,135.11,135.04,45.0]
[1718850991093,7.4013,135.11,135.04,45.0]
[1718850991390,0.17,135.09,134.99,0.17]
[1718850991584,0.51,135.09,134.99,65.68]
[1718850991885,27.9126,135.09,134.99,20.17]
[1718850992072,0.17,135.08,134.97,6.0636]
[1718850992383,20.17,135.09,134.97,6.0636]
[1718850992566,0.17,135.09,134.97,6.0636]
[1718850992892,0.17,135.1,134.98,22.28]
[1718850993103,20.0,135.11,135.0,22.28]
[1718850993267,24.6587,135.12,135.01,67.96]
[1718850993588,4.6587,135.12,135.02,20.0]
[1718850993787,7.4013,135.11,135.03,45.0]
[1718850994087,4.6587,135.12,135.03,45.0]
[1718850994273,4.6587,135.12,135.04,0.17]
[1718850994471,4.6587,135.12,135.04,20.51]
[1718850994784,16.5322,135.14,135.06,0.17]
[1718850994998,4.6587,135.16,135.06,42.96]
[1718850995365,4.6587,135.16,135.07,45.0]
[1718850995564,4.6587,135.16,135.08,20.0]
[1718850995774,4.6587,135.16,135.09,45.0]
[1718850996090,12.0577,135.16,135.09,45.0]
[1718850996258,0.17,135.15,135.09,45.0]
[1718850996457,8.0793,135.15,135.09,45.0]
[1718850996987,0.68,135.15,135.09,45.0]
[1718850997282,0.51,135.15,135.09,45.0]
[1718850997489,4.6587,135.16,135.09,45.0]
[1718850998384,12.0577,135.16,135.09,45.0]
[1718850998585,0.34,135.15,135.09,45.0]
[1718850998886,4.8287,135.16,135.09,45.0]
[1718850999082,20.0,135.17,135.09,45.0]
[1718850999284,20.17,135.18,135.09,45.0]
[1718851000373,0.34,135.17,135.09,45.0]
[1718851000974,0.17,135.17,135.09,45.0]
[1718851001178,20.17,135.18,135.09,45.0]
[1718851003166,0.34,135.17,135.09,45.0]
[1718851003367,7.7381,135.17,135.09,45.0]
[1718851003579,0.34,135.17,135.09,45.0]
[1718851003789,7.7381,135.17,135.09,45.0]
[1718851004494,0.17,135.16,135.09,45.0]
[1718851004789,0.17,135.16,135.08,16.5861]
[1718851004790,7.7387,135.16,135.08,16.5861]
[1718851004965,7.7387,135.16,135.04,22.1564]
[1718851004966,0.17,135.15,135.04,22.1564]
[1718851005169,7.9094,135.15,135.05,20.0]
[1718851005477,0.17,135.14,135.05,20.0]
[1718851005686,0.34,135.14,135.05,20.0]
[1718851006174,0.17,135.14,135.06,0.17]
[1718851006373,0.17,135.15,135.06,0.34]
[1718851006573,20.51,135.15,135.06,0.34]
[1718851007171,20.51,135.15,135.05,20.0]
[1718851007393,27.9091,135.15,135.06,45.0]
[1718851007776,0.17,135.14,135.05,20.0]
[1718851007969,7.4003,135.13,135.05,20.0]
[1718851008289,0.17,135.14,135.05,20.0]
[1718851008486,27.5697,135.14,135.05,20.0]
[1718851008689,0.51,135.13,135.05,20.0]
[1718851009377,0.51,135.13,135.06,45.0]
[1718851010690,20.0,135.14,135.06,45.0]
[1718851010894,20.7723,135.19,135.06,45.0]
[1718851010895,27.3977,135.18,135.06,45.0]
[1718851011292,20.0,135.18,135.06,45.0]
[1718851011494,7.3992,135.15,135.06,45.0]
[1718851012001,0.17,135.15,135.06,45.0]
[1718851012216,20.34,135.15,135.06,45.0]
[1718851012381,0.17,135.14,135.06,45.0]
[1718851014085,7.7397,135.14,135.06,45.0]
[1718851014375,20.34,135.13,135.04,22.1564]
[1718851014590,0.34,135.12,135.04,22.1564]
[1718851015189,15.9517,135.11,135.01,22.28]
[1718851015392,15.9517,135.11,135.0,21.838]
[1718851015393,0.34,135.1,135.02,20.0]
[1718851015599,15.9517,135.11,135.02,20.0]
[1718851015976,15.9517,135.11,135.01,20.0]
[1718851016504,0.17,135.1,135.01,20.0]
[1718851016701,0.34,135.1,135.01,20.0]
[1718851016907,27.7419,135.1,135.01,20.0]
[1718851017504,20.34,135.1,135.01,20.0]
[1718851017799,0.17,135.09,135.01,20.0]
[1718851018005,0.34,135.09,135.01,20.0]
[1718851018306,0.34,135.08,135.0,21.838]
[1718851018687,0.17,135.09,135.0,21.838]
[1718851018878,20.0,135.1,135.01,20.0]
[1718851019079,15.9517,135.11,135.02,0.17]
[1718851019284,15.9517,135.11,135.02,0.51]
[1718851019500,4.6587,135.12,135.03,0.17]
[1718851019712,4.6587,135.12,135.03,20.0]
[1718851020005,12.0595,135.12,135.04,45.0]
[1718851020505,7.4019,135.1,135.04,45.0]
[1718851020805,0.34,135.09,135.0,21.838]
[1718851021003,0.34,135.09,135.01,65.0]
[1718851021513,20.51,135.1,135.01,65.0]
[1718851021722,0.17,135.09,135.0,6.5862]
[1718851021900,0.34,135.09,134.97,22.4245]
[1718851022086,0.17,135.08,134.98,20.0]
[1718851022287,20.51,135.08,134.98,20.0]
[1718851022602,0.17,135.07,134.98,20.0]
[1718851022788,0.51,135.07,134.98,20.0]
[1718851022989,0.17,135.06,134.98,20.0]
[1718851023196,0.51,135.06,134.98,20.0]
[1718851024387,0.17,135.05,134.94,15.4298]
[1718851024710,0.17,135.03,134.94,15.4298]
[1718851024920,28.0858,135.03,134.94,15.4298]
[1718851025404,28.0858,135.03,134.93,28.4394]
[1718851025590,28.0859,135.03,134.93,28.4394]
[1718851025795,23.669,135.02,134.93,6.3094]
[1718851025997,4.6587,134.99,134.9,22.13]
[1718851026297,7.9189,134.98,134.86,22.13]
[1718851026495,0.17,134.96,134.86,22.13]
[1718851026686,0.68,134.96,134.86,22.13]
[1718851027493,0.68,134.96,134.84,43.8652]
[1718851028616,15.7329,134.95,134.85,45.0]
[1718851028803,15.7329,134.95,134.84,21.5852]
[1718851028804,0.34,134.94,134.84,21.5852]
[1718851029391,15.7329,134.95,134.85,42.28]
[1718851030307,15.7329,134.95,134.86,45.0]
[1718851030494,0.34,134.94,134.86,45.0]
[1718851030692,0.34,134.94,134.85,20.0]
[1718851030893,15.7329,134.95,134.85,20.0]
[1718851031195,15.7329,134.95,134.86,0.17]
[1718851031705,15.7329,134.95,134.85,20.0]
[1718851031904,0.68,134.94,134.85,20.0]
[1718851032095,0.51,134.94,134.86,45.0]
[1718851032298,0.34,134.94,134.86,45.0]
[1718851035020,0.34,134.94,134.85,20.0]
[1718851035021,0.17,134.93,134.85,20.0]
[1718851035195,4.6587,134.92,134.85,20.0]
[1718851035395,12.0709,134.92,134.82,42.28]
[1718851035616,4.6587,134.92,134.82,42.28]
[1718851036399,4.6587,134.92,134.83,0.51]
[1718851037005,0.17,134.91,134.82,20.0]
[1718851037299,0.51,134.91,134.81,20.0]
[1718851037522,20.51,134.91,134.81,20.0]
[1718851038313,20.51,134.91,134.82,45.17]
[1718851038901,20.51,134.91,134.81,20.0]
[1718851039612,7.4134,134.89,134.81,20.0]
[1718851039818,0.34,134.88,134.8,20.0]
[1718851040001,0.34,134.88,134.78,20.0]
[1718851040522,20.34,134.89,134.78,20.0]
[1718851040697,20.34,134.89,134.78,42.28]
[1718851040895,16.2634,134.9,134.79,0.34]
[1718851041216,16.2634,134.9,134.81,0.17]
[1718851041399,16.2634,134.9,134.81,87.62]
[1718851041715,16.2634,134.9,134.82,0.17]
[1718851042027,16.2634,134.9,134.82,45.17]
[1718851042255,16.2634,134.9,134.82,0.17]
[1718851042398,16.2634,134.9,134.82,20.17]
[1718851042604,16.2634,134.9,134.83,45.0]
[1718851044716,4.6587,134.92,134.84,0.51]
[1718851044916,4.6587,134.92,134.85,0.17]
[1718851045100,4.6587,134.92,134.85,45.17]
[1718851045295,15.5742,134.93,134.86,0.17]
[1718851045497,15.5742,134.93,134.86,20.34]
[1718851045697,15.5742,134.93,134.87,45.0]
[1718851046707,20.2329,134.96,134.88,0.17]
[1718851047016,20.2329,134.96,134.88,20.51]
[1718851047529,20.2329,134.96,134.89,45.0]
[1718851049207,27.6426,134.96,134.89,45.0]
[1718851049829,20.2329,134.96,134.89,45.0]
[1718851054920,0.17,134.95,134.89,45.0]
[1718851055112,28.0903,134.95,134.85,0.17]
[1718851055314,7.4107,134.94,134.84,20.0]
[1718851055514,0.34,134.93,134.84,20.0]
[1718851055719,0.34,134.93,134.85,20.0]
[1718851056320,0.34,134.93,134.84,20.0]
[1718851057013,0.34,134.92,134.84,20.0]
[1718851057934,0.17,134.91,134.84,20.0]
[1718851058131,15.033,134.9,134.83,20.0]
[1718851059323,15.033,134.9,134.84,45.0]
[1718851065440,4.6587,134.89,134.84,45.0]
[1718851065942,4.6587,134.89,134.8,22.18]
[1718851066130,0.17,134.88,134.78,22.35]
[1718851066332,0.34,134.88,134.79,65.51]
[1718851067820,0.34,134.88,134.79,65.34]
[1718851068033,0.17,134.87,134.79,20.0]
[1718851068220,0.34,134.87,134.79,20.0]
[1718851069449,0.17,134.88,134.8,45.0]
[1718851069630,0.34,134.88,134.8,45.0]
[1718851071925,0.17,134.87,134.8,45.0]
[1718851072230,0.34,134.87,134.8,45.0]
[1718851073027,0.34,134.86,134.8,45.0]
[1718851073236,0.34,134.86,134.79,20.0]
[1718851074045,0.17,134.86,134.79,20.0]
[1718851074240,20.0,134.88,134.8,45.0]
[1718851074457,0.17,134.87,134.8,45.0]
[1718851074637,0.68,134.88,134.8,45.0]
[1718851074954,20.68,134.88,134.8,45.0]
[1718851075930,0.17,134.88,134.8,45.0]
[1718851076138,24.6587,134.89,134.81,0.17]
[1718851076339,4.6587,134.89,134.81,20.34]
[1718851076525,15.033,134.9,134.83,0.17]
[1718851076921,20.8475,134.93,134.84,44.46]
[1718851077123,20.8475,134.93,134.85,65.51]
[1718851077528,20.8475,134.93,134.85,65.17]
[1718851077857,20.8475,134.93,134.85,65.0]
[1718851080535,0.68,134.92,134.85,45.0]
[1718851080941,20.8475,134.93,134.85,45.0]
[1718851081137,20.8475,134.93,134.86,0.51]
[1718851081344,20.8475,134.93,134.86,20.51]
[1718851081538,20.8475,134.93,134.86,42.79]
[1718851081834,16.1888,134.93,134.87,45.17]
[1718851082035,16.1888,134.93,134.88,20.0]
[1718851082242,16.1888,134.93,134.87,45.0]
[1718851082529,16.1888,134.93,134.75,22.18]
[1718851082753,7.4132,134.9,134.83,20.0]
[1718851082937,7.4132,134.9,134.8,6.6076]
[1718851082938,7.4129,134.9,134.81,20.0]
[1718851083145,7.9225,134.91,134.81,20.0]
[1718851083349,0.51,134.91,134.81,20.0]
[1718851083534,20.51,134.91,134.81,20.0]
[1718851084130,15.8492,134.89,134.81,20.0]
[1718851085448,15.8492,134.89,134.82,45.0]
[1718851085647,15.8492,134.89,134.81,45.0]
[1718851085953,0.34,134.88,134.8,20.0]
[1718851086155,0.34,134.88,134.79,20.0]
[1718851087240,0.34,134.88,134.8,45.0]
[1718851087547,0.34,134.88,134.81,20.0]
[1718851088050,16.1892,134.89,134.81,20.0]
[1718851088257,16.1892,134.89,134.82,45.0]
[1718851089254,0.17,134.88,134.81,20.0]
[1718851089442,0.68,134.88,134.79,20.0]
[1718851089645,0.68,134.88,134.8,45.0]
[1718851089852,0.68,134.88,134.81,20.0]
[1718851090835,20.68,134.88,134.8,45.0]
[1718851091038,20.68,134.88,134.79,45.0]
[1718851092562,28.094,134.88,134.78,67.18]
[1718851092743,20.68,134.88,134.79,20.0]
[1718851092943,28.094,134.88,134.8,45.0]
[1718851093345,20.68,134.88,134.8,45.0]
[1718851095961,28.094,134.88,134.8,45.0]
[1718851096575,28.094,134.88,134.78,22.18]
[1718851096576,28.094,134.88,134.79,45.0]
[1718851096870,0.17,134.86,134.79,45.0]
[1718851097058,0.68,134.86,134.79,45.0]
[1718851098370,4.6587,134.87,134.79,45.0]
[1718851098751,4.6587,134.87,134.81,0.17]
[1718851098963,4.6587,134.87,134.81,45.17]
[1718851100169,16.2769,134.93,134.82,15.4313]
[1718851100370,16.2769,134.93,134.85,22.18]
[1718851100582,16.2769,134.93,134.86,20.68]
[1718851100758,16.2769,134.93,134.87,45.0]
[1718851101257,16.2769,134.93,134.86,45.68]
[1718851101455,16.2769,134.93,134.87,20.0]
[1718851101657,16.2769,134.93,134.88,45.0]
[1718851102251,16.2769,134.93,134.87,20.0]
[1718851102456,16.2769,134.93,134.86,20.0]
[1718851103070,0.68,134.92,134.86,20.0]
[1718851103371,0.68,134.92,134.83,20.0]
[1718851103570,0.68,134.92,134.84,45.0]
[1718851103880,8.0918,134.92,134.83,20.0]
[1718851104178,0.68,134.92,134.83,20.0]
[1718851104671,0.68,134.92,134.8,22.18]
[1718851104876,28.0921,134.92,134.81,0.17]
[1718851105071,0.17,134.9,134.8,22.18]
[1718851105272,20.68,134.92,134.8,22.18]
[1718851105483,28.0921,134.92,134.8,22.18]
[1718851105986,28.0921,134.92,134.81,20.0]
[1718851106360,7.4123,134.91,134.81,20.0]
[1718851106671,20.68,134.9,134.81,20.0]
[1718851106867,21.1583,134.89,134.82,45.0]
[1718851107072,0.17,134.88,134.82,45.0]
[1718851108552,0.51,134.88,134.82,45.0]
[1718851108968,0.51,134.88,134.81,20.0]
[1718851109174,0.51,134.88,134.77,22.18]